bitfinex-derivatives/quotes_BTCF0:USTF0_20230101
["timestamp","ask_amount","ask_price","bid_price","bid_amount"]
[1672556575969,1.0252622,16560.0,16559.0,0.30856633]
[1672556577539,0.96487573,16560.0,16559.0,0.30856633]
[1672556577754,0.96487573,16560.0,16559.0,0.00786633]
[1672556578068,0.96487573,16560.0,16559.0,0.30856633]
[1672556578278,0.96487573,16560.0,16559.0,0.30837613]
[1672556582696,0.01278296,16560.0,16559.0,0.30837613]
[1672556583644,0.07316943,16560.0,16559.0,0.30837613]
[1672556585123,1.0252622,16560.0,16559.0,0.30837613]
[1672556592689,1.0252622,16560.0,16559.0,0.00767613]
[1672556594161,0.07316943,16560.0,16559.0,0.00767613]
[1672556594370,0.12316943,16560.0,16559.0,0.00767613]
[1672556597408,0.12303774,16560.0,16559.0,0.00767613]
[1672556604977,1.07342742,16560.0,16559.0,0.00767613]
[1672556608440,1.07342742,16560.0,16559.0,0.00690852]
[1672556609172,0.12303774,16560.0,16559.0,0.00690852]
[1672556610237,0.42373774,16560.0,16559.0,0.00690852]
[1672556612434,0.42373774,16560.0,16559.0,0.00621767]
[1672556613381,0.12303774,16560.0,16559.0,0.00621767]
[1672556613600,0.42373774,16560.0,16559.0,0.00621767]
[1672556614430,0.42373774,16560.0,16559.0,0.00559591]
[1672556616430,0.42373774,16560.0,16559.0,0.00503632]
[1672556618542,0.42373774,16560.0,16559.0,0.00453269]
[1672556620417,0.42373774,16560.0,16559.0,0.00407943]
[1672556622644,0.42373774,16560.0,16559.0,0.00367149]
[1672556624433,0.42373774,16560.0,16559.0,0.00330435]
[1672556625057,0.12303774,16560.0,16559.0,0.00330435]
[1672556626532,0.12303774,16560.0,16559.0,0.00297392]
[1672556628636,0.42373774,16560.0,16559.0,0.00267653]
[1672556630529,0.42373774,16560.0,16559.0,0.00240888]
[1672556633159,0.42373774,16560.0,16559.0,0.002168]
[1672556634004,0.12303774,16560.0,16559.0,0.002168]
[1672556635152,0.12303774,16560.0,16559.0,0.00195121]
[1672556637150,0.12303774,16560.0,16559.0,0.00175609]
[1672556637572,0.06265127,16560.0,16559.0,0.00175609]
[1672556639254,0.06265127,16560.0,16559.0,0.00158049]
[1672556643785,0.12303774,16560.0,16559.0,0.00158049]
[1672556645557,0.12303774,16560.0,16559.0,0.05158049]
[1672556645558,1.07420107,16560.0,16559.0,0.05158049]
[1672556649971,0.12303774,16560.0,16559.0,0.05158049]
[1672556656606,0.12303774,16560.0,16559.0,0.04642245]
[1672556658071,0.12303774,16560.0,16558.0,0.3007]
[1672556658283,0.95094714,16559.0,16558.0,0.3007]
[1672556659228,0.97394714,16559.0,16558.0,0.3047]
[1672556663533,0.97394714,16559.0,16558.0,0.004]
[1672556665113,0.023,16559.0,16558.0,0.004]
[1672556665851,0.073,16559.0,16558.0,0.004]
[1672556672576,1.02426523,16559.0,16558.0,0.004]
[1672556681500,1.32496523,16559.0,16558.0,0.00360001]
[1672556681708,0.3737,16559.0,16558.0,0.00360001]
[1672556682974,0.073,16559.0,16558.0,0.00360001]
[1672556683504,0.073,16559.0,16558.0,0.00324001]
[1672556685499,0.073,16559.0,16558.0,0.00291601]
[1672556702435,1.02433856,16559.0,16558.0,0.00291601]
[1672556703913,1.08472868,16559.0,16558.0,0.00291601]
[1672556704740,0.13339012,16559.0,16558.0,0.00291601]
[1672556718307,0.08339012,16559.0,16558.0,0.00291601]
[1672556718940,0.13339012,16559.0,16558.0,0.00291601]
[1672556720199,0.08339012,16559.0,16558.0,0.00291601]
[1672556722195,0.08339012,16559.0,16558.0,0.05291601]
[1672556727244,0.05291,16558.0,16545.0,0.2266396]
[1672556727448,0.05291,16558.0,16548.0,0.3007]
[1672556727449,0.6037,16551.0,16548.0,0.3007]
[1672556727648,0.6037,16551.0,16546.0,0.3007]
[1672556727649,0.3007,16549.0,16546.0,0.3007]
[1672556727863,0.05,16548.0,16546.0,0.3007]
[1672556728706,0.3007,16549.0,16547.0,0.05]
[1672556728920,0.3127,16549.0,16547.0,0.05]
[1672556729330,0.014,16548.0,16547.0,0.05]
[1672556729545,0.064,16548.0,16547.0,0.05]
[1672556730494,0.3137,16549.0,16547.0,0.075]
[1672556731020,0.013,16548.0,16547.0,0.075]
[1672556731432,0.3007,16549.0,16547.0,0.05]
[1672556731643,0.3137,16549.0,16547.0,0.075]
[1672556731852,0.05,16548.0,16547.0,0.075]
[1672556732065,0.055,16548.0,16547.0,0.007]
[1672556733435,0.05,16548.0,16547.0,0.004]
[1672556733659,0.05,16548.0,16545.0,0.3507]
[1672556733968,0.141,16548.0,16547.0,0.004]
[1672556734800,0.063,16548.0,16545.0,0.3757]
[1672556735223,0.141,16548.0,16547.0,0.004]
[1672556736375,0.063,16548.0,16545.0,0.075]
[1672556737219,0.141,16548.0,16547.0,0.004]
[1672556737419,0.141,16548.0,16545.0,0.05]
[1672556737631,0.063,16548.0,16545.0,0.075]
[1672556738367,0.141,16548.0,16547.0,0.004]
[1672556739419,0.4417,16548.0,16547.0,0.004]
[1672556739626,0.3637,16548.0,16545.0,0.075]
[1672556740049,0.4417,16548.0,16547.0,0.004]
[1672556740465,0.3507,16548.0,16545.0,0.05]
[1672556740681,0.3637,16548.0,16545.0,0.075]
[1672556740898,0.3637,16548.0,16545.0,0.05]
[1672556741113,0.4417,16548.0,16547.0,0.004]
[1672556741937,0.141,16548.0,16547.0,0.004]
[1672556742479,0.063,16548.0,16545.0,0.075]
[1672556742680,0.05,16548.0,16545.0,0.05]
[1672556742889,0.141,16548.0,16547.0,0.004]
[1672556743095,0.4417,16548.0,16547.0,0.004]
[1672556745510,0.141,16548.0,16547.0,0.004]
[1672556745722,0.4417,16548.0,16547.0,0.004]
[1672556759604,0.141,16548.0,16547.0,0.004]
[1672556759807,0.4417,16548.0,16547.0,0.004]
[1672556764024,0.50213026,16548.0,16547.0,0.004]
[1672556765700,0.20143026,16548.0,16547.0,0.004]
[1672556765918,0.50213026,16548.0,16547.0,0.004]
[1672556772533,1.45399728,16548.0,16547.0,0.004]
[1672556774006,1.45399728,16548.0,16547.0,0.00379199]
[1672556774741,0.50213026,16548.0,16547.0,0.00379199]
[1672556777048,1.45399728,16548.0,16547.0,0.00379199]
[1672556777253,1.49699728,16548.0,16545.0,0.3507]
[1672556778529,1.49799728,16548.0,16545.0,0.3507]
[1672556778843,1.36299728,16548.0,16545.0,0.3507]
[1672556779040,0.47813026,16548.0,16545.0,0.3517]
[1672556779462,0.42113026,16548.0,16545.0,0.3537]
[1672556779886,0.41113026,16548.0,16545.0,0.3507]
[1672556780092,0.54313026,16548.0,16545.0,0.3507]
[1672556782302,0.24243026,16548.0,16545.0,0.05]
[1672556782521,0.24243026,16548.0,16545.0,0.3507]
[1672556783563,1.19429728,16548.0,16545.0,0.05]
[1672556783884,1.19429728,16548.0,16545.0,0.3507]
[1672556784094,1.19429728,16548.0,16545.0,0.05]
[1672556784310,1.19429728,16548.0,16545.0,0.3507]
[1672556786091,1.19429728,16548.0,16545.0,0.05]
[1672556786290,1.19429728,16548.0,16545.0,0.3507]
[1672556787246,1.19429728,16548.0,16545.0,0.3007]
[1672556788085,0.95186702,16547.0,16545.0,0.3007]
[1672556788300,0.05,16546.0,16545.0,0.3007]
[1672556789350,0.05,16546.0,16545.0,0.3017]
[1672556789556,0.05,16546.0,16545.0,0.3007]
[1672556789763,0.117,16546.0,16545.0,0.3017]
[1672556790613,0.117,16546.0,16545.0,0.001]
[1672556792394,0.117,16546.0,16545.0,0.051]
[1672556792929,0.067,16546.0,16545.0,0.051]
[1672556793865,0.117,16546.0,16545.0,0.051]
[1672556796174,0.067,16546.0,16545.0,0.3517]
[1672556797224,1.01229728,16548.0,16546.0,0.05]
[1672556797538,1.01229728,16548.0,16547.0,0.3007]
[1672556798376,1.09429728,16548.0,16547.0,0.3007]
[1672556798797,1.09429728,16548.0,16547.0,0.3067]
[1672556799430,0.14243026,16548.0,16547.0,0.3067]
[1672556815306,0.14243026,16548.0,16547.0,0.006]
[1672556815620,0.14243026,16548.0,16547.0,0.3067]
[1672556817826,0.082,16548.0,16547.0,0.3067]
[1672556823812,0.14243026,16548.0,16547.0,0.3067]
[1672556825296,0.14243026,16548.0,16547.0,0.006]
[1672556825490,0.14243026,16548.0,16547.0,0.3067]
[1672556826126,0.14243026,16548.0,16547.0,0.006]
[1672556826336,0.14243026,16548.0,16547.0,0.3067]
[1672556827603,0.14243026,16548.0,16547.0,0.006]
[1672556827806,0.14243026,16548.0,16547.0,0.3067]
[1672556830546,0.14243026,16548.0,16547.0,0.006]
[1672556830758,0.14243026,16548.0,16547.0,0.3067]
[1672556832754,0.14243026,16548.0,16547.0,0.006]
[1672556832970,0.14243026,16548.0,16547.0,0.3067]
[1672556841474,0.14243026,16548.0,16547.0,0.006]
[1672556841793,0.19243026,16548.0,16547.0,0.006]
[1672556845991,1.14429728,16548.0,16547.0,0.006]
[1672556846202,1.14429728,16548.0,16547.0,0.00585526]
[1672556848094,0.19243026,16548.0,16547.0,0.00585526]
[1672556852824,1.14429728,16548.0,16547.0,0.00585526]
[1672556854623,1.44499728,16548.0,16547.0,0.00585526]
[1672556855036,0.49313026,16548.0,16547.0,0.00585526]
[1672556857029,1.44499728,16548.0,16547.0,0.00585526]
[1672556865132,1.09429728,16548.0,16547.0,0.00585526]
[1672556865446,1.09429728,16548.0,16547.0,0.05585526]
[1672556866275,0.14243026,16548.0,16547.0,0.05585526]
[1672556875106,0.14243026,16548.0,16547.0,0.35655526]
[1672556876467,0.14243026,16548.0,16547.0,0.05585526]
[1672556876688,0.14243026,16548.0,16547.0,0.35655526]
[1672556877945,0.082,16548.0,16547.0,0.35655526]
[1672556882678,0.082,16548.0,16547.0,0.05585526]
[1672556884154,0.14243026,16548.0,16547.0,0.05585526]
[1672556884986,0.14243026,16548.0,16547.0,0.35655526]
[1672556885310,0.14243026,16548.0,16547.0,0.05585526]
[1672556885521,0.14243026,16548.0,16547.0,0.35655526]
[1672556887201,0.14243026,16548.0,16547.0,0.05585526]
[1672556887417,0.14243026,16548.0,16547.0,0.35655526]
[1672556891094,0.14243026,16548.0,16547.0,0.05585526]
[1672556895294,0.14243026,16548.0,16547.0,0.05564683]
[1672556906146,1.09429728,16548.0,16547.0,0.05564683]
[1672556908881,1.09429728,16548.0,16547.0,0.35634683]
[1672556909196,1.09429728,16548.0,16547.0,0.05564683]
[1672556909599,1.09429728,16548.0,16547.0,0.35634683]
[1672556910238,1.09429728,16548.0,16547.0,0.05564683]
[1672556910455,0.14243026,16548.0,16547.0,0.05564683]
[1672556910763,0.14243026,16548.0,16547.0,0.35634683]
[1672556911506,0.14243026,16548.0,16547.0,0.05564683]
[1672556911720,0.14243026,16548.0,16547.0,0.35634683]
[1672556914335,0.06043026,16548.0,16547.0,0.35634683]
[1672556916962,0.06043026,16548.0,16547.0,0.05564683]
[1672556917279,0.06043026,16548.0,16547.0,0.35634683]
[1672556921700,0.06043026,16548.0,16547.0,0.05564683]
[1672556922009,0.06043026,16548.0,16547.0,0.35634683]
[1672556927049,0.06043026,16548.0,16547.0,0.05564683]
[1672556927264,0.06043026,16548.0,16547.0,0.35634683]
[1672556938081,0.05,16551.0,16547.0,0.35634683]
[1672556938282,0.05,16551.0,16550.0,0.3007]
[1672556939010,0.05,16551.0,16549.0,0.3007]
[1672556939856,0.05,16551.0,16550.0,0.011]
[1672556940068,0.05,16551.0,16550.0,0.061]
[1672556940277,0.95186702,16552.0,16550.0,0.05]
[1672556940592,0.95186702,16552.0,16549.0,0.3117]
[1672556940805,0.05,16551.0,16549.0,0.3117]
[1672556941009,0.05,16551.0,16549.0,0.3007]
[1672556941325,0.95186702,16552.0,16550.0,0.061]
[1672556942574,0.95186702,16552.0,16550.0,0.05]
[1672556943216,0.95186702,16552.0,16550.0,0.061]
[1672556944052,0.06041931,16551.0,16550.0,0.061]
[1672556945524,0.06041931,16551.0,16550.0,0.3617]
[1672556948381,0.06026064,16551.0,16550.0,0.3617]
[1672556952046,0.06026064,16551.0,16550.0,0.061]
[1672556952256,0.06026064,16551.0,16550.0,0.3617]
[1672556955503,0.06026064,16551.0,16550.0,0.061]
[1672556955715,0.06026064,16551.0,16550.0,0.3617]
[1672556970865,0.06026064,16551.0,16550.0,0.061]
[1672556971072,0.06026064,16551.0,16550.0,0.3617]
[1672556979792,0.06026064,16551.0,16550.0,0.061]
[1672556979997,0.06026064,16551.0,16550.0,0.3617]
[1672556984003,0.06026064,16551.0,16550.0,0.061]
[1672556984203,0.06026064,16551.0,16550.0,0.3617]
[1672556997982,0.06026064,16551.0,16550.0,0.36154183]
[1672556998186,0.05,16552.0,16550.0,0.36154183]
[1672556999137,0.05,16552.0,16550.0,0.35054183]
[1672556999337,0.05,16552.0,16550.0,0.36154183]
[1672556999547,1.00186702,16552.0,16550.0,0.36154183]
[1672556999971,1.00186702,16552.0,16550.0,0.06084183]
[1672557001022,0.95186702,16552.0,16550.0,0.06084183]
[1672557001442,0.95186702,16552.0,16551.0,0.3007]
[1672557001756,0.3007,16553.0,16551.0,0.3007]
[1672557002082,0.3007,16553.0,16552.0,0.05]
[1672557003021,1.25256702,16554.0,16552.0,0.05]
[1672557003437,1.25256702,16554.0,16552.0,0.061]
[1672557004287,1.01227902,16553.0,16552.0,0.061]
[1672557005443,1.01227902,16553.0,16552.0,0.05]
[1672557005653,1.01227902,16553.0,16552.0,0.061]
[1672557006381,0.060412,16553.0,16552.0,0.061]
[1672557006702,0.060412,16553.0,16552.0,0.0549]
[1672557006917,0.059712,16553.0,16552.0,0.0549]
[1672557007754,0.109712,16553.0,16552.0,0.0549]
[1672557007975,0.059712,16553.0,16552.0,0.0549]
[1672557008917,0.05947899,16553.0,16552.0,0.0549]
[1672557010273,0.10947899,16553.0,16552.0,0.0549]
[1672557012172,0.05947899,16553.0,16552.0,0.0549]
[1672557019010,0.05947899,16553.0,16552.0,0.3556]
[1672557020594,0.05947899,16553.0,16552.0,0.0549]
[1672557021004,0.05947899,16553.0,16552.0,0.3556]
[1672557025524,0.05947899,16553.0,16552.0,0.0549]
[1672557039308,0.36017899,16553.0,16552.0,0.0549]
[1672557039938,1.31204601,16553.0,16552.0,0.0549]
[1672557043208,1.01134601,16553.0,16552.0,0.0549]
[1672557044356,0.05947899,16553.0,16552.0,0.0549]
[1672557055301,0.05947899,16553.0,16552.0,0.05475862]
[1672557058239,0.95186702,16554.0,16552.0,0.05475862]
[1672557059393,0.95186702,16554.0,16552.0,0.04375862]
[1672557059592,0.95186702,16554.0,16552.0,0.05475862]
[1672557064120,0.060412,16553.0,16552.0,0.05475862]
[1672557065799,0.110412,16553.0,16552.0,0.011]
[1672557066749,1.06227902,16553.0,16552.0,0.011]
[1672557069056,1.06227902,16553.0,16552.0,0.01]
[1672557071264,0.110412,16553.0,16552.0,0.01]
[1672557071788,0.110412,16553.0,16552.0,0.00900001]
[1672557073684,0.110412,16553.0,16552.0,0.00810001]
[1672557075910,0.110412,16553.0,16552.0,0.00729001]
[1672557076642,0.110412,16553.0,16545.0,0.6399]
[1672557076643,0.60495,16552.0,16545.0,0.6399]
[1672557076855,0.3007,16548.0,16546.0,0.05]
[1672557078317,0.3017,16548.0,16546.0,0.191]
[1672557079681,0.001,16548.0,16546.0,0.191]
[1672557080423,0.051,16548.0,16546.0,0.191]
[1672557087350,0.3517,16548.0,16546.0,0.191]
[1672557087876,0.051,16548.0,16546.0,0.191]
[1672557088090,0.3517,16548.0,16546.0,0.191]
[1672557094287,0.051,16548.0,16546.0,0.191]
[1672557094502,0.3517,16548.0,16546.0,0.191]
[1672557096702,0.051,16548.0,16546.0,0.191]
[1672557097348,0.05086914,16548.0,16546.0,0.191]
[1672557100603,0.35156914,16548.0,16546.0,0.191]
[1672557100803,0.35156914,16548.0,16546.0,0.141]
[1672557101016,0.95526914,16548.0,16544.0,6e-05]
[1672557101224,0.9044,16545.0,16539.0,0.3007]
[1672557101435,0.80086914,16548.0,16540.0,0.05]
[1672557101436,0.30076,16543.0,16540.0,0.05]
[1672557101653,6e-05,16543.0,16541.0,0.3007]
[1672557101856,6e-05,16543.0,16542.0,0.05]
[1672557102803,0.01606,16543.0,16542.0,0.058]
[1672557104914,6e-05,16543.0,16542.0,0.05]
[1672557105120,0.01706,16543.0,16542.0,0.3587]
[1672557106177,0.01706,16543.0,16542.0,0.3507]
[1672557106385,0.00906,16543.0,16542.0,0.3577]
[1672557107433,0.01706,16543.0,16542.0,0.3587]
[1672557107853,6e-05,16543.0,16542.0,0.3507]
[1672557108068,0.00906,16543.0,16542.0,0.3577]
[1672557110277,0.00906,16543.0,16542.0,0.35776]
[1672557110591,0.7793,16547.0,16542.0,0.35776]
[1672557110804,1.55180472,16549.0,16544.0,0.3007]
[1672557111010,1.25060472,16549.0,16544.0,0.3007]
[1672557111220,1.25060472,16549.0,16545.0,0.05]
[1672557111422,0.05,16548.0,16545.0,0.05]
[1672557111747,0.126,16547.0,16545.0,0.05]
[1672557111950,1.25060472,16549.0,16545.0,0.05]
[1672557112160,0.4297,16549.0,16545.0,0.05]
[1672557112792,0.05,16548.0,16545.0,0.05]
[1672557113216,0.179,16548.0,16545.0,0.052]
[1672557113848,0.179,16548.0,16546.0,0.3007]
[1672557114684,0.05,16548.0,16546.0,0.3007]
[1672557114893,0.179,16548.0,16546.0,0.3027]
[1672557115736,0.179,16548.0,16546.0,0.002]
[1672557118891,1.12890472,16548.0,16546.0,0.002]
[1672557124253,0.06043391,16547.0,16546.0,0.002]
[1672557125725,0.18943391,16547.0,16546.0,0.002]
[1672557136557,0.23943391,16547.0,16546.0,0.002]
[1672557136766,0.23943391,16547.0,16546.0,0.00180001]
[1672557137924,0.54013391,16547.0,16546.0,0.00180001]
[1672557138765,0.54013391,16547.0,16546.0,0.00162001]
[1672557138977,1.49006421,16547.0,16546.0,0.00162001]
[1672557139826,1.18936421,16547.0,16546.0,0.00162001]
[1672557140141,1.49006421,16547.0,16546.0,0.00162001]
[1672557140453,1.49006421,16547.0,16546.0,0.00168001]
[1672557141074,0.54013391,16547.0,16546.0,0.00168001]
[1672557141502,0.54019391,16547.0,16546.0,0.00168001]
[1672557142861,0.54019391,16547.0,16546.0,0.00151201]
[1672557143495,0.23949391,16547.0,16546.0,0.00151201]
[1672557143703,0.54019391,16547.0,16546.0,0.00151201]
[1672557144862,1.49026616,16547.0,16546.0,0.00151201]
[1672557146120,1.18956616,16547.0,16546.0,0.00151201]
[1672557146336,1.49026616,16547.0,16546.0,0.00151201]
[1672557150431,1.18956616,16547.0,16546.0,0.00151201]
[1672557150647,1.49026616,16547.0,16546.0,0.00151201]
[1672557153472,1.18956616,16547.0,16546.0,0.00151201]
[1672557153689,1.49026616,16547.0,16546.0,0.00151201]
[1672557154729,1.18956616,16547.0,16546.0,0.00151201]
[1672557155366,1.49026616,16547.0,16546.0,0.00151201]
[1672557155577,1.18956616,16547.0,16546.0,0.00151201]
[1672557155793,1.49026616,16547.0,16546.0,0.00151201]
[1672557155998,0.54019391,16547.0,16546.0,0.00151201]
[1672557156627,0.23949391,16547.0,16546.0,0.00151201]
[1672557157153,0.54019391,16547.0,16546.0,0.00151201]
[1672557159670,0.54019391,16547.0,16546.0,0.00136081]
[1672557165352,0.54019391,16547.0,16546.0,0.00122473]
[1672557167448,0.54019391,16547.0,16546.0,0.00110226]
[1672557169664,0.54019391,16547.0,16546.0,0.00099204]
[1672557174610,0.23949391,16547.0,16546.0,0.00099204]
[1672557174807,0.54019391,16547.0,16546.0,0.00099204]
[1672557175449,0.54019391,16547.0,16546.0,0.00089284]
[1672557177329,0.47976,16547.0,16546.0,0.00080356]
[1672557179435,0.47976,16547.0,16546.0,0.00072321]
[1672557181540,0.47976,16547.0,16546.0,0.00065089]
[1672557183328,0.54019391,16547.0,16546.0,0.00065089]
[1672557183535,0.54019391,16547.0,16546.0,0.00058581]
[1672557185423,0.54019391,16547.0,16546.0,0.00052581]
[1672557190584,0.54019391,16547.0,16546.0,0.00046581]
[1672557192476,0.54019391,16547.0,16546.0,0.00040581]
[1672557194578,0.54019391,16547.0,16546.0,0.00034581]
[1672557195106,0.23949391,16547.0,16546.0,0.00034581]
[1672557195329,0.54019391,16547.0,16546.0,0.00034581]
[1672557196468,0.54019391,16547.0,16546.0,0.00028581]
[1672557198475,0.54019391,16547.0,16546.0,0.00022581]
[1672557200581,0.23949391,16547.0,16546.0,0.00022581]
[1672557200777,0.54019391,16547.0,16546.0,0.00022581]
[1672557202989,0.23949391,16547.0,16546.0,0.00022581]
[1672557203306,0.54019391,16547.0,16546.0,0.00022581]
[1672557205615,0.54019391,16547.0,16546.0,0.00016581]
[1672557207514,0.54019391,16547.0,16546.0,0.00010581]
[1672557209512,0.54019391,16547.0,16546.0,4.581e-05]
[1672557209837,0.54013391,16547.0,16546.0,4.581e-05]
[1672557211520,1.419e-05,16545.0,16544.0,0.05]
[1672557211831,0.95087504,16545.0,16544.0,0.05]
[1672557213092,1.07687504,16545.0,16544.0,0.052]
[1672557224878,1.07687504,16545.0,16544.0,0.002]
[1672557228756,1.37757504,16545.0,16544.0,0.002]
[1672557236122,0.42671419,16545.0,16544.0,0.002]
[1672557242539,0.42671419,16545.0,16544.0,0.052]
[1672557243164,1.37757504,16545.0,16544.0,0.052]
[1672557243375,1.43801626,16545.0,16544.0,0.052]
[1672557244534,1.43801626,16545.0,16544.0,0.002]
[1672557245162,1.43801626,16545.0,16544.0,0.052]
[1672557245366,0.48715541,16545.0,16544.0,0.052]
[1672557245578,0.18645541,16545.0,16544.0,0.052]
[1672557247580,1.13731626,16545.0,16544.0,0.052]
[1672557252008,0.18645541,16545.0,16544.0,0.052]
[1672557258833,1.13731626,16545.0,16544.0,0.052]
[1672557261042,0.18645541,16545.0,16544.0,0.052]
[1672557262717,0.18645541,16545.0,16544.0,0.3527]
[1672557266500,0.18645541,16545.0,16544.0,0.35246186]
[1672557283751,0.18645541,16545.0,16544.0,0.05176186]
[1672557283949,0.18645541,16545.0,16544.0,0.35246186]
[1672557286277,0.14645541,16545.0,16544.0,0.3547]
[1672557294477,0.14645541,16545.0,16544.0,0.054]
[1672557294696,0.14645541,16545.0,16544.0,0.3547]
[1672557297426,0.08601419,16545.0,16544.0,0.3547]
[1672557303404,0.14645541,16545.0,16544.0,0.3547]
[1672557304890,0.14645541,16545.0,16544.0,0.054]
[1672557305208,0.14645541,16545.0,16544.0,0.3547]
[1672557307088,0.14645541,16545.0,16544.0,0.3047]
[1672557308149,0.14645541,16545.0,16544.0,0.004]
[1672557310780,0.14645541,16545.0,16544.0,0.00385154]
[1672557312030,0.44715541,16545.0,16544.0,0.00385154]
[1672557316873,0.44714122,16545.0,16544.0,0.00385154]
[1672557317921,0.4469963,16545.0,16544.0,0.00385154]
[1672557320559,0.1462963,16545.0,16544.0,0.00385154]
[1672557320777,0.4469963,16545.0,16544.0,0.00385154]
[1672557326868,0.1462963,16545.0,16544.0,0.00385154]
[1672557327183,0.4469963,16545.0,16544.0,0.00385154]
[1672557334755,0.1462963,16545.0,16544.0,0.00385154]
[1672557334966,0.4469963,16545.0,16544.0,0.00385154]
[1672557336019,0.1462963,16545.0,16544.0,0.00385154]
[1672557336232,0.4469963,16545.0,16544.0,0.00385154]
[1672557342013,0.1462963,16545.0,16544.0,0.00385154]
[1672557342219,0.4469963,16545.0,16544.0,0.00385154]
[1672557344103,1.39785715,16545.0,16544.0,0.00385154]
[1672557345689,1.09715715,16545.0,16544.0,0.00385154]
[1672557345900,1.39785715,16545.0,16544.0,0.00385154]
[1672557348002,1.09715715,16545.0,16544.0,0.00385154]
[1672557348316,1.39785715,16545.0,16544.0,0.00385154]
[1672557355458,0.4469963,16545.0,16544.0,0.00385154]
[1672557357140,1.39788868,16545.0,16544.0,0.00385154]
[1672557357464,1.33744746,16545.0,16544.0,0.00385154]
[1672557358825,1.03674746,16545.0,16544.0,0.00385154]
[1672557359039,1.33744746,16545.0,16544.0,0.00385154]
[1672557363452,1.39788868,16545.0,16544.0,0.00385154]
[1672557363663,1.39788868,16545.0,16544.0,0.0037714]
[1672557368700,1.09718868,16545.0,16544.0,0.0037714]
[1672557368907,1.39788868,16545.0,16544.0,0.0037714]
[1672557372156,1.09718868,16545.0,16544.0,0.0037714]
[1672557373112,0.1462963,16545.0,16544.0,0.0037714]
[1672557377416,0.1462963,16545.0,16544.0,0.0537714]
[1672557398859,0.14617438,16545.0,16544.0,0.0537714]
[1672557409792,0.14617438,16545.0,16544.0,0.3544714]
[1672557410729,0.14617438,16545.0,16544.0,0.0537714]
[1672557410935,0.14617438,16545.0,16544.0,0.3544714]
[1672557411367,0.14617438,16545.0,16544.0,0.0537714]
[1672557412207,0.14617438,16545.0,16544.0,0.3544714]
[1672557412420,0.89687438,16545.0,16540.0,0.3007]
[1672557412726,0.3007,16538.0,16528.0,0.0907629]
[1672557412942,0.6037,16529.0,16527.0,0.3007]
[1672557413147,0.3007,16532.0,16527.0,0.6007]
[1672557413349,0.3007,16532.0,16528.0,0.05]
[1672557413562,0.3007,16532.0,16529.0,0.6007]
[1672557413778,0.95089238,16532.0,16529.0,0.6007]
[1672557413990,0.95089238,16532.0,16530.0,0.05]
[1672557414407,1.25159238,16532.0,16530.0,0.05]
[1672557414612,0.0604924,16531.0,16530.0,0.05]
[1672557415779,0.1224924,16531.0,16530.0,0.05]
[1672557416201,0.1224924,16531.0,16528.0,0.05]
[1672557416410,0.1224924,16531.0,16525.0,0.3279]
[1672557416411,0.3007,16530.0,16525.0,0.3279]
[1672557416827,0.3007,16530.0,16526.0,0.05]
[1672557417042,0.3007,16528.0,16526.0,0.05]
[1672557417357,0.3007,16530.0,16526.0,0.05]
[1672557418613,0.3157,16530.0,16526.0,0.05]
[1672557418824,0.05,16529.0,16526.0,0.05]
[1672557421024,0.061,16529.0,16526.0,0.05]
[1672557421243,0.3007,16527.0,16526.0,0.05]
[1672557422926,0.3627,16527.0,16526.0,0.05]
[1672557423558,0.42320704,16527.0,16526.0,0.05]
[1672557423870,0.42320704,16527.0,16524.0,0.3007]
[1672557424080,0.3007,16525.0,16520.0,0.3007]
[1672557424297,0.3007,16523.0,16518.0,0.6253]
[1672557424608,0.3007,16523.0,16519.0,0.05]
[1672557425551,0.3157,16523.0,16519.0,0.05]
[1672557426306,0.3157,16523.0,16513.0,0.3007]
[1672557426307,0.3007,16521.0,16513.0,0.3007]
[1672557426502,0.3007,16519.0,16515.0,0.6007]
[1672557426710,0.3007,16523.0,16518.0,0.05]
[1672557426916,0.3157,16523.0,16518.0,0.05]
[1672557427124,0.3007,16523.0,16518.0,0.05]
[1672557427345,0.014,16521.0,16518.0,0.05]
[1672557427771,0.3177,16523.0,16518.0,0.05]
[1672557427979,0.3177,16523.0,16518.0,0.3507]
[1672557428289,0.3177,16521.0,16518.0,0.3507]
[1672557428705,0.3007,16521.0,16518.0,0.05]
[1672557429229,0.05,16520.0,16517.0,0.05]
[1672557429550,0.3007,16519.0,16517.0,0.05]
[1672557430488,0.3177,16519.0,16517.0,0.05]
[1672557431443,0.3007,16519.0,16517.0,0.05]
[1672557431653,0.3197,16519.0,16517.0,0.05]
[1672557432179,0.05,16518.0,16516.0,0.05]
[1672557432912,0.3007,16519.0,16516.0,0.05]
[1672557433121,0.134,16518.0,16516.0,0.05]
[1672557442792,0.134,16518.0,16516.0,0.3507]
[1672557443425,0.0601,16518.0,16516.0,0.3507]
[1672557445844,0.0601,16518.0,16517.0,0.3007]
[1672557446585,0.3007,16521.0,16517.0,0.3007]
[1672557446791,0.3007,16521.0,16518.0,0.05]
[1672557447950,0.3797,16521.0,16518.0,0.056]
[1672557449217,0.079,16521.0,16519.0,0.3007]
[1672557449422,0.079,16521.0,16520.0,0.05]
[1672557450474,0.072,16521.0,16520.0,0.057]
[1672557451103,0.002,16521.0,16520.0,0.07]
[1672557452143,0.006,16521.0,16520.0,0.125]
[1672557453620,0.007,16521.0,16520.0,0.118]
[1672557454670,0.007,16521.0,16520.0,0.05]
[1672557454993,0.061,16521.0,16520.0,0.056]
[1672557455195,0.05,16522.0,16520.0,0.05]
[1672557455406,0.003,16521.0,16520.0,0.078]
[1672557455624,0.05,16522.0,16520.0,0.05]
[1672557455827,0.061,16521.0,16520.0,0.056]
[1672557462137,0.3007,16525.0,16521.0,0.061]
[1672557462337,0.3007,16525.0,16521.0,0.3617]
[1672557464438,0.3237,16525.0,16521.0,0.3717]
[1672557465383,0.3007,16525.0,16521.0,0.3617]